[Event "*** Titled Tuesday Blitz"]
[Site "Chess.com"]
[Date "2020.03.03"]
[Round "9"]
[White "kasparicy"]
[Black "arjwezhrtdrz"]
[Result "0-1"]
[WhiteElo "2351"]
[BlackElo "2161"]
[TimeControl "180+1"]
[EndTime "14:46:15 PST"]
[Termination "arjwezhrtdrz won by resignation"]

1. e4 {[%clk 0:03:00.9]} 1... e6 {[%clk 0:02:58.9]} 2. d4 {[%clk 0:03:00.2]}
2... d5 {[%clk 0:02:59.8]} 3. Nd2 {[%clk 0:03:00.7]} 3... dxe4 {[%clk
0:02:59.8]} 4. Nxe4 {[%clk 0:03:01.6]} 4... Bd7 {[%clk 0:03:00.4]} 5. Nf3 {[%clk
0:03:01.7]} 5... Bc6 {[%clk 0:03:00.7]} 6. Bd3 {[%clk 0:03:00.8]} 6... Nd7
{[%clk 0:03:01.3]} 7. Qe2 {[%clk 0:02:58.1]} 7... Ngf6 {[%clk 0:03:00.6]} 8. Ng3
{[%clk 0:02:56.3]} 8... Bxf3 {[%clk 0:02:58.6]} 9. Qxf3 {[%clk 0:02:54.8]} 9...
c6 {[%clk 0:02:58.7]} 10. Bd2 {[%clk 0:02:53.1]} 10... Bd6 {[%clk 0:02:56]} 11.
O-O-O {[%clk 0:02:53.1]} 11... Qc7 {[%clk 0:02:52.7]} 12. Kb1 {[%clk 0:02:53.2]}
12... O-O-O {[%clk 0:02:51.8]} 13. h4 {[%clk 0:02:53.6]} 13... Kb8 {[%clk
0:02:50.8]} 14. h5 {[%clk 0:02:53.2]} 14... h6 {[%clk 0:02:50.8]} 15. Rhe1
{[%clk 0:02:49]} 15... Rhf8 {[%clk 0:02:27.3]} 16. c4 {[%clk 0:02:41.7]} 16...
Ka8 {[%clk 0:02:15.1]} 17. Rc1 {[%clk 0:02:35.9]} 17... Bxg3 {[%clk 0:01:39.6]}
18. fxg3 {[%clk 0:02:34.1]} 18... Nb6 {[%clk 0:01:39.6]} 19. Bf4 {[%clk
0:02:22.8]} 19... Qd7 {[%clk 0:01:39.7]} 20. Be5 {[%clk 0:02:19.2]} 20... Ne8
{[%clk 0:01:37.6]} 21. Bxg7 {[%clk 0:02:18]} 21... Nxg7 {[%clk 0:01:36.6]} 22.
c5 {[%clk 0:02:04]} 22... Nd5 {[%clk 0:01:36.4]} 23. g4 {[%clk 0:02:03.5]} 23...
Nb4 {[%clk 0:01:29.8]} 24. Rc4 {[%clk 0:02:02.6]} 24... Nxd3 {[%clk 0:01:28.8]}
25. Qxd3 {[%clk 0:02:03.5]} 25... e5 {[%clk 0:01:21]} 26. Ra4 {[%clk 0:01:57.5]}
26... Ne6 {[%clk 0:01:16.4]} 27. Qa3 {[%clk 0:01:40.1]} 27... a6 {[%clk
0:01:07.6]} 28. dxe5 {[%clk 0:01:37.1]} 28... Qd3+ {[%clk 0:00:52.6]} 29. Qxd3
{[%clk 0:01:35]} 29... Rxd3 {[%clk 0:00:53.5]} 30. Rf1 {[%clk 0:01:25.9]} 30...
Rd2 {[%clk 0:00:41.6]} 31. Rf6 {[%clk 0:01:21.2]} 31... Nd4 {[%clk 0:00:32.2]}
32. a3 {[%clk 0:01:17.3]} 32... Ne6 {[%clk 0:00:16.6]} 33. Rxh6 {[%clk
0:01:13.1]} 33... Rxg2 {[%clk 0:00:16.4]} 34. Rf6 {[%clk 0:01:12.2]} 34... Rg8
{[%clk 0:00:16.4]} 35. h6 {[%clk 0:01:04.8]} 35... R2xg4 {[%clk 0:00:16.1]} 36.
h7 {[%clk 0:01:02.8]} 36... Rg1+ {[%clk 0:00:14.9]} 37. Ka2 {[%clk 0:01:03]}
37... Rh8 {[%clk 0:00:15.8]} 38. Rxf7 {[%clk 0:00:59]} 38... Nxc5 {[%clk
0:00:15.9]} 39. Rh4 {[%clk 0:00:49.3]} 39... Ka7 {[%clk 0:00:13.6]} 40. Rh6
{[%clk 0:00:48]} 40... Re1 {[%clk 0:00:12.6]} 41. Rg6 {[%clk 0:00:45.3]} 41...
Rxe5 {[%clk 0:00:11.4]} 42. Rg8 {[%clk 0:00:44.9]} 42... Re8 {[%clk 0:00:11.2]}
43. Rxe8 {[%clk 0:00:43.2]} 43... Rxe8 {[%clk 0:00:11.1]} 44. Rg7 {[%clk
0:00:43.9]} 44... Rh8 {[%clk 0:00:11.4]} 45. b4 {[%clk 0:00:44.2]} 45... Ne6
{[%clk 0:00:11.6]} 46. a4 {[%clk 0:00:45]} 46... Nxg7 {[%clk 0:00:11.2]} 0-1

[Event "*** Titled Tuesday Blitz"]
[Site "Chess.com"]
[Date "2020.03.03"]
[Round "9"]
[White "Willychess95"]
[Black "ama18"]
[Result "1-0"]
[WhiteElo "2644"]
[BlackElo "2537"]
[TimeControl "180+1"]
[EndTime "14:46:18 PST"]
[Termination "Willychess95 won on time"]

1. e4 {[%clk 0:02:59.8]} 1... c5 {[%clk 0:02:59.6]} 2. Nf3 {[%clk 0:02:59.8]}
2... d6 {[%clk 0:02:59.7]} 3. d4 {[%clk 0:03:00.7]} 3... cxd4 {[%clk 0:03:00.6]}
4. Nxd4 {[%clk 0:03:01.5]} 4... Nf6 {[%clk 0:03:01.1]} 5. Nc3 {[%clk 0:03:02.1]}
5... a6 {[%clk 0:03:01.8]} 6. Bg5 {[%clk 0:03:02.4]} 6... Nbd7 {[%clk
0:03:01.3]} 7. Qe2 {[%clk 0:03:02.3]} 7... h6 {[%clk 0:02:54.2]} 8. Bxf6 {[%clk
0:02:59.7]} 8... Nxf6 {[%clk 0:02:53.9]} 9. O-O-O {[%clk 0:03:00.6]} 9... e5
{[%clk 0:02:44.8]} 10. Nf5 {[%clk 0:02:52.8]} 10... g6 {[%clk 0:02:30]} 11. Ne3
{[%clk 0:02:51.1]} 11... Be6 {[%clk 0:02:29.7]} 12. Ned5 {[%clk 0:02:47.8]}
12... Nxd5 {[%clk 0:02:28.4]} 13. Nxd5 {[%clk 0:02:48.7]} 13... Rc8 {[%clk
0:02:19.6]} 14. Rd3 {[%clk 0:02:38.3]} 14... Bg7 {[%clk 0:02:16.4]} 15. Kb1
{[%clk 0:02:37.6]} 15... O-O {[%clk 0:02:14.9]} 16. f3 {[%clk 0:02:34.3]} 16...
f5 {[%clk 0:02:11.8]} 17. Qd1 {[%clk 0:02:28]} 17... fxe4 {[%clk 0:02:08.4]} 18.
fxe4 {[%clk 0:02:28.9]} 18... Rf2 {[%clk 0:02:02.6]} 19. Rd2 {[%clk 0:02:10.4]}
19... Rxd2 {[%clk 0:01:52.6]} 20. Qxd2 {[%clk 0:02:11.3]} 20... b5 {[%clk
0:01:48.6]} 21. Be2 {[%clk 0:02:08.3]} 21... Qh4 {[%clk 0:01:41.3]} 22. Bf3
{[%clk 0:02:03.9]} 22... Kh7 {[%clk 0:01:33.9]} 23. Ne3 {[%clk 0:01:56.5]} 23...
Bf8 {[%clk 0:01:31]} 24. h3 {[%clk 0:01:47.8]} 24... h5 {[%clk 0:01:28.9]} 25.
Rd1 {[%clk 0:01:42.6]} 25... Be7 {[%clk 0:01:13.3]} 26. Nd5 {[%clk 0:01:41.7]}
26... Bg5 {[%clk 0:01:08.5]} 27. Qd3 {[%clk 0:01:38.6]} 27... Kh6 {[%clk
0:01:02]} 28. Nb4 {[%clk 0:01:36.3]} 28... a5 {[%clk 0:00:57.8]} 29. Qxd6 {[%clk
0:01:33.1]} 29... Rd8 {[%clk 0:00:17.1]} 30. Qxe5 {[%clk 0:01:20.4]} 30... Rxd1+
{[%clk 0:00:15.7]} 31. Bxd1 {[%clk 0:01:21.3]} 31... Bf6 {[%clk 0:00:07.1]} 32.
Qxe6 {[%clk 0:01:13.3]} 32... Qe1 {[%clk 0:00:06.3]} 33. Qd5 {[%clk 0:01:02.2]}
33... Qxb4 {[%clk 0:00:03.8]} 34. e5 {[%clk 0:00:50.6]} 34... Bg5 {[%clk
0:00:03.8]} 35. Qg8 {[%clk 0:00:38.9]} 35... Be3 {[%clk 0:00:02.8]} 36. Qh8+
{[%clk 0:00:38.2]} 36... Kg5 {[%clk 0:00:02.6]} 37. Qf6+ {[%clk 0:00:38.1]}
37... Kh6 {[%clk 0:00:02.1]} 38. Qd6 {[%clk 0:00:32.6]} 1-0

[Event "*** Titled Tuesday Blitz"]
[Site "Chess.com"]
[Date "2020.03.03"]
[Round "9"]
[White "RitvarsReimanis"]
[Black "MusicCityMaster"]
[Result "1-0"]
[WhiteElo "2607"]
[BlackElo "2386"]
[TimeControl "180+1"]
[EndTime "14:46:18 PST"]
[Termination "RitvarsReimanis won by resignation"]

1. d4 {[%clk 0:03:00.9]} 1... Nf6 {[%clk 0:02:57.6]} 2. c4 {[%clk 0:03:00.4]}
2... c5 {[%clk 0:02:57.8]} 3. d5 {[%clk 0:03:00.5]} 3... b5 {[%clk 0:02:58]} 4.
cxb5 {[%clk 0:03:01.4]} 4... a6 {[%clk 0:02:58.4]} 5. bxa6 {[%clk 0:03:02.3]}
5... g6 {[%clk 0:02:58.3]} 6. Nc3 {[%clk 0:03:02.8]} 6... Bxa6 {[%clk
0:02:58.4]} 7. Nf3 {[%clk 0:03:01.3]} 7... Bg7 {[%clk 0:02:56.7]} 8. Rb1 {[%clk
0:03:01.8]} 8... d6 {[%clk 0:02:54.3]} 9. b3 {[%clk 0:03:01.7]} 9... Qa5 {[%clk
0:02:49.4]} 10. Bd2 {[%clk 0:03:01.3]} 10... O-O {[%clk 0:02:48.6]} 11. g3
{[%clk 0:03:01]} 11... Nbd7 {[%clk 0:02:47]} 12. Bg2 {[%clk 0:02:58]} 12... Bb7
{[%clk 0:02:47.2]} 13. a4 {[%clk 0:02:48.8]} 13... Qa6 {[%clk 0:02:43.3]} 14.
Nh4 {[%clk 0:02:42.2]} 14... Nb6 {[%clk 0:02:29.3]} 15. Bg5 {[%clk 0:02:16.2]}
15... Qa5 {[%clk 0:02:04.7]} 16. Bd2 {[%clk 0:02:15.4]} 16... Qa6 {[%clk
0:02:00.5]} 17. e4 {[%clk 0:02:12.9]} 17... Nfd7 {[%clk 0:01:39.5]} 18. Nb5
{[%clk 0:02:11.2]} 18... Rfc8 {[%clk 0:01:35.9]} 19. O-O {[%clk 0:02:04.9]}
19... c4 {[%clk 0:01:27.8]} 20. Bc3 {[%clk 0:02:04.2]} 20... Bxc3 {[%clk
0:01:22]} 21. Nxc3 {[%clk 0:02:03.3]} 21... cxb3 {[%clk 0:01:22.2]} 22. Qxb3
{[%clk 0:02:04.2]} 22... Qc4 {[%clk 0:01:15.8]} 23. Rfc1 {[%clk 0:01:33.2]}
23... Qxb3 {[%clk 0:01:08]} 24. Rxb3 {[%clk 0:01:34.1]} 24... Rc4 {[%clk
0:01:06.5]} 25. Bh3 {[%clk 0:01:28.7]} 25... Bc8 {[%clk 0:00:46.5]} 26. Bf1
{[%clk 0:01:13.6]} 26... Rc7 {[%clk 0:00:41.1]} 27. Bb5 {[%clk 0:01:06.9]} 27...
Nc5 {[%clk 0:00:37.9]} 28. Rb4 {[%clk 0:01:05.3]} 28... Ncxa4 {[%clk 0:00:31]}
29. Bc6 {[%clk 0:00:59.3]} 29... Nxc3 {[%clk 0:00:28.3]} 30. Rxc3 {[%clk
0:00:54.7]} 30... Ra1+ {[%clk 0:00:27.3]} 31. Kg2 {[%clk 0:00:54.8]} 31... Nd7
{[%clk 0:00:25.1]} 32. Nf3 {[%clk 0:00:47.9]} 32... Kg7 {[%clk 0:00:22.1]} 33.
Nd4 {[%clk 0:00:46.5]} 33... Nc5 {[%clk 0:00:21.4]} 34. Nb5 {[%clk 0:00:45.5]}
34... Rxc6 {[%clk 0:00:14.7]} 35. dxc6 {[%clk 0:00:44.6]} 35... Ba6 {[%clk
0:00:14.9]} 36. e5 {[%clk 0:00:39]} 36... h5 {[%clk 0:00:13.2]} 37. exd6 {[%clk
0:00:37.9]} 37... exd6 {[%clk 0:00:14.1]} 38. Nxd6 {[%clk 0:00:35.2]} 38... Bf1+
{[%clk 0:00:13]} 39. Kf3 {[%clk 0:00:35.7]} 39... Ne6 {[%clk 0:00:13.2]} 40. c7
{[%clk 0:00:30.9]} 40... Nxc7 {[%clk 0:00:13.3]} 41. Rxc7 {[%clk 0:00:30.9]}
41... Ra3+ {[%clk 0:00:14]} 42. Kf4 {[%clk 0:00:26.9]} 42... Bg2 {[%clk
0:00:13.4]} 43. Rxf7+ {[%clk 0:00:25.2]} 43... Kh6 {[%clk 0:00:12.9]} 44. Nf5+
{[%clk 0:00:21.9]} 44... gxf5 {[%clk 0:00:12.4]} 45. Rb6+ {[%clk 0:00:22.1]} 1-0

[Event "*** Titled Tuesday Blitz"]
[Site "Chess.com"]
[Date "2020.03.03"]
[Round "9"]
[White "JonahWillow"]
[Black "Gordima"]
[Result "1-0"]
[WhiteElo "2655"]
[BlackElo "2778"]
[TimeControl "180+1"]
[EndTime "14:46:29 PST"]
[Termination "JonahWillow won by resignation"]

1. e4 {[%clk 0:03:00.9]} 1... e5 {[%clk 0:03:00]} 2. Nf3 {[%clk 0:03:00.5]} 2...
Nc6 {[%clk 0:03:00.3]} 3. Nc3 {[%clk 0:03:01.4]} 3... Nf6 {[%clk 0:02:59.6]} 4.
Bb5 {[%clk 0:03:02]} 4... Bb4 {[%clk 0:02:57.9]} 5. O-O {[%clk 0:03:02.3]} 5...
O-O {[%clk 0:02:58.1]} 6. d3 {[%clk 0:03:02.8]} 6... d6 {[%clk 0:02:57.9]} 7.
Bg5 {[%clk 0:03:03.3]} 7... Bxc3 {[%clk 0:02:53.3]} 8. bxc3 {[%clk 0:03:04.2]}
8... Ne7 {[%clk 0:02:53.9]} 9. Nh4 {[%clk 0:02:56.7]} 9... c6 {[%clk 0:02:49.8]}
10. Bc4 {[%clk 0:02:56.8]} 10... d5 {[%clk 0:02:50.1]} 11. Bb3 {[%clk
0:02:55.8]} 11... a5 {[%clk 0:02:48.2]} 12. a4 {[%clk 0:02:49.2]} 12... Qd6
{[%clk 0:02:48.2]} 13. Qf3 {[%clk 0:02:39.4]} 13... h6 {[%clk 0:02:39.1]} 14.
Bxf6 {[%clk 0:02:39.5]} 14... Qxf6 {[%clk 0:02:40]} 15. Qxf6 {[%clk 0:02:39.2]}
15... gxf6 {[%clk 0:02:40.9]} 16. f4 {[%clk 0:02:39.2]} 16... Be6 {[%clk
0:02:32.2]} 17. f5 {[%clk 0:02:34.5]} 17... Bd7 {[%clk 0:02:23.7]} 18. Rab1
{[%clk 0:02:33]} 18... Rfb8 {[%clk 0:02:08.5]} 19. Nf3 {[%clk 0:02:23.8]} 19...
b5 {[%clk 0:02:04.1]} 20. axb5 {[%clk 0:02:24.7]} 20... Rxb5 {[%clk 0:02:03.7]}
21. Ba4 {[%clk 0:02:24.9]} 21... Rbb8 {[%clk 0:01:56.5]} 22. Nd2 {[%clk
0:02:14.8]} 22... Be8 {[%clk 0:01:44.4]} 23. Nb3 {[%clk 0:02:11.4]} 23... Rb6
{[%clk 0:01:40.3]} 24. Ra1 {[%clk 0:01:56]} 24... Kf8 {[%clk 0:01:29.5]} 25. Kf2
{[%clk 0:01:52.8]} 25... dxe4 {[%clk 0:01:21.9]} 26. dxe4 {[%clk 0:01:51.9]}
26... Nc8 {[%clk 0:01:22.5]} 27. Nc5 {[%clk 0:01:40.2]} 27... Ke7 {[%clk
0:01:19]} 28. Bb3 {[%clk 0:01:34.2]} 28... Nd6 {[%clk 0:01:18]} 29. Ke3 {[%clk
0:01:31.2]} 29... Nb5 {[%clk 0:01:15.4]} 30. Na4 {[%clk 0:01:29.5]} 30... Rbb8
{[%clk 0:01:11.9]} 31. Rad1 {[%clk 0:01:30.4]} 31... Nd6 {[%clk 0:01:04.2]} 32.
g4 {[%clk 0:01:24.4]} 32... Rd8 {[%clk 0:01:01.8]} 33. Rd3 {[%clk 0:01:22.7]}
33... Nb7 {[%clk 0:00:56.2]} 34. Rfd1 {[%clk 0:01:18.2]} 34... Rxd3+ {[%clk
0:00:53.5]} 35. cxd3 {[%clk 0:01:18.2]} 35... Nd6 {[%clk 0:00:48]} 36. Nc5
{[%clk 0:01:13]} 36... Nb5 {[%clk 0:00:44.5]} 37. Rc1 {[%clk 0:01:09.9]} 37...
Rb8 {[%clk 0:00:43.9]} 38. Ba4 {[%clk 0:01:09.4]} 38... Nd6 {[%clk 0:00:39.1]}
39. Rc2 {[%clk 0:01:06.8]} 39... Kd8 {[%clk 0:00:38.3]} 40. d4 {[%clk
0:01:04.7]} 40... Nc4+ {[%clk 0:00:37.5]} 41. Kf3 {[%clk 0:01:05.1]} 41... Rb2
{[%clk 0:00:25.7]} 42. Rxb2 {[%clk 0:01:02.3]} 42... Nxb2 {[%clk 0:00:26.6]} 43.
Bb3 {[%clk 0:01:03.2]} 43... Kc7 {[%clk 0:00:19.8]} 44. Ke2 {[%clk 0:01:00]}
44... Kb6 {[%clk 0:00:17.3]} 45. Kd2 {[%clk 0:00:56.3]} 45... Kb5 {[%clk
0:00:17.5]} 46. Kc2 {[%clk 0:00:48.1]} 46... Nc4 {[%clk 0:00:17.6]} 47. Bxc4+
{[%clk 0:00:30.4]} 47... Kxc4 {[%clk 0:00:18.5]} 48. Nb7 {[%clk 0:00:31.3]}
48... exd4 {[%clk 0:00:17.1]} 49. Nd6+ {[%clk 0:00:31.3]} 49... Kc5 {[%clk
0:00:17.5]} 50. Nxe8 {[%clk 0:00:32.2]} 50... a4 {[%clk 0:00:16.1]} 51. Nxf6
{[%clk 0:00:30.1]} 51... a3 {[%clk 0:00:16.3]} 52. h4 {[%clk 0:00:26.1]} 52...
a2 {[%clk 0:00:14.9]} 53. cxd4+ {[%clk 0:00:26.4]} 53... Kxd4 {[%clk 0:00:15]}
54. Kb2 {[%clk 0:00:27.3]} 54... Ke5 {[%clk 0:00:12.7]} 55. g5 {[%clk
0:00:27.7]} 55... hxg5 {[%clk 0:00:13.2]} 56. hxg5 {[%clk 0:00:28.6]} 1-0

[Event "*** Titled Tuesday Blitz"]
[Site "Chess.com"]
[Date "2020.03.03"]
[Round "9"]
[White "Sordis"]
[Black "enriquetejedor"]
[Result "0-1"]
[WhiteElo "2372"]
[BlackElo "2563"]
[TimeControl "180+1"]
[EndTime "14:46:31 PST"]
[Termination "enriquetejedor won by checkmate"]

1. c4 {[%clk 0:03:00.9]} 1... e6 {[%clk 0:02:54.3]} 2. g3 {[%clk 0:03:00.3]}
2... d5 {[%clk 0:02:52.8]} 3. Bg2 {[%clk 0:03:00.4]} 3... dxc4 {[%clk 0:02:52]}
4. Qa4+ {[%clk 0:02:59.8]} 4... Nd7 {[%clk 0:02:46.7]} 5. Qxc4 {[%clk
0:02:59.6]} 5... Ngf6 {[%clk 0:02:45.3]} 6. Nf3 {[%clk 0:02:59.2]} 6... Be7
{[%clk 0:02:42.9]} 7. O-O {[%clk 0:02:56.6]} 7... c6 {[%clk 0:02:43.2]} 8. a4
{[%clk 0:02:53.4]} 8... O-O {[%clk 0:02:38.8]} 9. a5 {[%clk 0:02:52.8]} 9... Qc7
{[%clk 0:02:33.4]} 10. d3 {[%clk 0:02:49.1]} 10... b6 {[%clk 0:02:31.2]} 11.
axb6 {[%clk 0:02:47.7]} 11... Nxb6 {[%clk 0:02:30.6]} 12. Qc2 {[%clk 0:02:39.4]}
12... Bb7 {[%clk 0:02:28.8]} 13. Bf4 {[%clk 0:02:38.9]} 13... Bd6 {[%clk
0:02:27]} 14. Bxd6 {[%clk 0:02:38.6]} 14... Qxd6 {[%clk 0:02:26.8]} 15. Nc3
{[%clk 0:02:39.2]} 15... c5 {[%clk 0:02:24.2]} 16. Nb5 {[%clk 0:02:26.9]} 16...
Qd7 {[%clk 0:02:22.8]} 17. Na3 {[%clk 0:02:25.7]} 17... Rfc8 {[%clk 0:02:17.6]}
18. Nc4 {[%clk 0:02:25.7]} 18... Nxc4 {[%clk 0:02:15]} 19. Qxc4 {[%clk
0:02:24.8]} 19... Bd5 {[%clk 0:02:15.5]} 20. Qa4 {[%clk 0:02:18.6]} 20... Qxa4
{[%clk 0:02:12.6]} 21. Rxa4 {[%clk 0:02:19.5]} 21... Rcb8 {[%clk 0:02:10.7]} 22.
Rb1 {[%clk 0:02:15.5]} 22... h6 {[%clk 0:02:08]} 23. Ne5 {[%clk 0:02:12.6]}
23... Bxg2 {[%clk 0:02:07.6]} 24. Kxg2 {[%clk 0:02:13.5]} 24... Nd5 {[%clk
0:02:07.7]} 25. Nc4 {[%clk 0:02:07.7]} 25... Nc3 {[%clk 0:02:05.7]} 26. Rba1
{[%clk 0:02:04.6]} 26... Nxa4 {[%clk 0:02:05.3]} 27. Rxa4 {[%clk 0:02:05.5]}
27... a5 {[%clk 0:02:04.9]} 28. Kf3 {[%clk 0:01:59.9]} 28... Rb4 {[%clk
0:02:04.7]} 29. Rxa5 {[%clk 0:01:53.3]} 29... Rxa5 {[%clk 0:02:00.2]} 30. Nxa5
{[%clk 0:01:54.2]} 30... Rxb2 {[%clk 0:02:00.8]} 31. Nc4 {[%clk 0:01:54.5]}
31... Ra2 {[%clk 0:02:01.1]} 32. h4 {[%clk 0:01:54.5]} 32... Kf8 {[%clk
0:02:00]} 33. Ke3 {[%clk 0:01:53.9]} 33... Ke7 {[%clk 0:01:59.2]} 34. Ne5 {[%clk
0:01:51.5]} 34... f6 {[%clk 0:01:59.1]} 35. Nc4 {[%clk 0:01:51.7]} 35... e5
{[%clk 0:01:58.8]} 36. h5 {[%clk 0:01:50]} 36... Ke6 {[%clk 0:01:57.4]} 37. g4
{[%clk 0:01:47.1]} 37... Ra8 {[%clk 0:01:56.2]} 38. f3 {[%clk 0:01:47.1]} 38...
Ra7 {[%clk 0:01:56.3]} 39. Nd2 {[%clk 0:01:44.5]} 39... Ra4 {[%clk 0:01:54.6]}
40. Ne4 {[%clk 0:01:43.7]} 40... Ra5 {[%clk 0:01:53.1]} 41. Nd2 {[%clk
0:01:42.9]} 41... Ra4 {[%clk 0:01:50.6]} 42. Ne4 {[%clk 0:01:43]} 42... Ra5
{[%clk 0:01:45.1]} 43. Nd2 {[%clk 0:01:38.1]} 43... Kd5 {[%clk 0:01:43]} 44. Ne4
{[%clk 0:01:35.1]} 44... Ra3 {[%clk 0:01:38.5]} 45. Nd2 {[%clk 0:01:33.3]} 45...
Rc3 {[%clk 0:01:34.7]} 46. Ne4 {[%clk 0:01:30.6]} 46... Rc2 {[%clk 0:01:30.8]}
47. Ng3 {[%clk 0:01:29.3]} 47... Ra2 {[%clk 0:01:24.3]} 48. Nf5 {[%clk
0:01:26.4]} 48... Ra7 {[%clk 0:01:24.7]} 49. Ng3 {[%clk 0:01:26.7]} 49... Ke6
{[%clk 0:01:16.7]} 50. Ne4 {[%clk 0:01:25.5]} 50... Rc7 {[%clk 0:01:16.6]} 51.
Nd2 {[%clk 0:01:25]} 51... f5 {[%clk 0:01:15.2]} 52. Nc4 {[%clk 0:01:17.2]}
52... Rd7 {[%clk 0:01:13]} 53. Nb6 {[%clk 0:01:12.9]} 53... Rd6 {[%clk
0:01:08.9]} 54. Nc4 {[%clk 0:01:12.7]} 54... Rd8 {[%clk 0:01:09.5]} 55. Kf2
{[%clk 0:01:11]} 55... fxg4 {[%clk 0:01:09.2]} 56. fxg4 {[%clk 0:01:11.9]} 56...
e4 {[%clk 0:01:09.9]} 57. Ke3 {[%clk 0:01:09.6]} 57... exd3 {[%clk 0:01:09.7]}
58. exd3 {[%clk 0:01:10.5]} 58... Rd4 {[%clk 0:01:10.1]} 59. Nd2 {[%clk
0:00:56.2]} 59... Rxg4 {[%clk 0:01:09.9]} 60. Ne4 {[%clk 0:00:56.2]} 60... Kd5
{[%clk 0:01:09.3]} 61. Nc3+ {[%clk 0:00:52.5]} 61... Ke5 {[%clk 0:01:07]} 62.
Ne4 {[%clk 0:00:52.5]} 62... Rxe4+ {[%clk 0:01:04.9]} 63. dxe4 {[%clk
0:00:53.4]} 63... c4 {[%clk 0:01:03.9]} 64. Kf3 {[%clk 0:00:53.6]} 64... c3
{[%clk 0:00:57.7]} 65. Ke3 {[%clk 0:00:53]} 65... c2 {[%clk 0:00:58.6]} 66. Kd2
{[%clk 0:00:52.8]} 66... Kxe4 {[%clk 0:00:50.8]} 67. Kxc2 {[%clk 0:00:53]} 67...
Kf5 {[%clk 0:00:51.1]} 68. Kd2 {[%clk 0:00:53.1]} 68... Kg5 {[%clk 0:00:52]} 69.
Ke3 {[%clk 0:00:54]} 69... Kxh5 {[%clk 0:00:37.9]} 70. Kf3 {[%clk 0:00:54.9]}
70... Kh4 {[%clk 0:00:38.7]} 71. Kf2 {[%clk 0:00:55.2]} 71... g5 {[%clk
0:00:39.6]} 72. Kg2 {[%clk 0:00:55.6]} 72... g4 {[%clk 0:00:40.5]} 73. Kh2
{[%clk 0:00:56.2]} 73... g3+ {[%clk 0:00:41.4]} 74. Kg2 {[%clk 0:00:57]} 74...
Kg4 {[%clk 0:00:41.5]} 75. Kg1 {[%clk 0:00:57.5]} 75... Kh3 {[%clk 0:00:42.4]}
76. Kh1 {[%clk 0:00:57.8]} 76... Kg4 {[%clk 0:00:39.5]} 77. Kg1 {[%clk
0:00:58.7]} 77... Kf3 {[%clk 0:00:40.4]} 78. Kh1 {[%clk 0:00:59.6]} 78... h5
{[%clk 0:00:39.1]} 79. Kg1 {[%clk 0:01:00.5]} 79... g2 {[%clk 0:00:40]} 80. Kh2
{[%clk 0:01:00.6]} 80... Kf2 {[%clk 0:00:40.9]} 81. Kh3 {[%clk 0:01:01.1]} 81...
g1=Q {[%clk 0:00:41.8]} 82. Kh4 {[%clk 0:01:02]} 82... Qg4# {[%clk 0:00:42.4]}
0-1

[Event "*** Titled Tuesday Blitz"]
[Site "Chess.com"]
[Date "2020.03.03"]
[Round "9"]
[White "Konavets"]
[Black "Supernotar"]
[Result "0-1"]
[WhiteElo "3017"]
[BlackElo "2847"]
[TimeControl "180+1"]
[EndTime "14:46:39 PST"]
[Termination "Supernotar won on time"]

1. d4 {[%clk 0:03:00.9]} 1... d5 {[%clk 0:02:59.6]} 2. Bf4 {[%clk 0:02:59.8]}
2... Nf6 {[%clk 0:02:59.3]} 3. e3 {[%clk 0:02:59.5]} 3... e6 {[%clk 0:02:59.1]}
4. Nf3 {[%clk 0:02:59.3]} 4... Bd6 {[%clk 0:02:58.4]} 5. Bg3 {[%clk 0:02:58.8]}
5... c5 {[%clk 0:02:56.1]} 6. c3 {[%clk 0:02:58.3]} 6... O-O {[%clk 0:02:51.6]}
7. Nbd2 {[%clk 0:02:58]} 7... Qc7 {[%clk 0:02:50.9]} 8. dxc5 {[%clk 0:02:57.4]}
8... Qxc5 {[%clk 0:02:49]} 9. Bd3 {[%clk 0:02:58]} 9... Nbd7 {[%clk 0:02:35.5]}
10. e4 {[%clk 0:02:57]} 10... dxe4 {[%clk 0:02:02.1]} 11. Nxe4 {[%clk
0:02:53.4]} 11... Nxe4 {[%clk 0:01:59.7]} 12. Bxe4 {[%clk 0:02:52.6]} 12... Bxg3
{[%clk 0:01:52]} 13. hxg3 {[%clk 0:02:35.2]} 13... Nf6 {[%clk 0:01:51.5]} 14.
Bc2 {[%clk 0:02:25.6]} 14... b6 {[%clk 0:01:50.7]} 15. Qe2 {[%clk 0:02:19]}
15... Bb7 {[%clk 0:01:48.5]} 16. O-O-O {[%clk 0:02:18.6]} 16... Rad8 {[%clk
0:01:44.8]} 17. Nd4 {[%clk 0:02:19]} 17... h6 {[%clk 0:01:38.1]} 18. f4 {[%clk
0:02:14.7]} 18... Qd5 {[%clk 0:01:30.6]} 19. Qf3 {[%clk 0:01:02.9]} 19... Qd7
{[%clk 0:01:20.2]} 20. Qe3 {[%clk 0:00:54.3]} 20... Qd5 {[%clk 0:01:16]} 21. Kb1
{[%clk 0:00:52.8]} 21... Qxg2 {[%clk 0:01:13]} 22. Rhg1 {[%clk 0:00:52.6]} 22...
Qh3 {[%clk 0:01:05.2]} 23. Rde1 {[%clk 0:00:44.8]} 23... Rd6 {[%clk 0:00:49.1]}
24. Qe2 {[%clk 0:00:33.1]} 24... Qg4 {[%clk 0:00:43.2]} 25. Qe5 {[%clk
0:00:33.2]} 25... Rfd8 {[%clk 0:00:36.3]} 26. a3 {[%clk 0:00:24.4]} 26... Rd5
{[%clk 0:00:36.1]} 27. Qe3 {[%clk 0:00:23.6]} 27... R5d6 {[%clk 0:00:32.5]} 28.
Qe5 {[%clk 0:00:22.7]} 28... Rd5 {[%clk 0:00:32.6]} 29. Qe3 {[%clk 0:00:22.7]}
29... R5d6 {[%clk 0:00:32.3]} 30. Ka1 {[%clk 0:00:23.2]} 30... Qh3 {[%clk
0:00:31.3]} 31. Qe2 {[%clk 0:00:20.3]} 31... Qg4 {[%clk 0:00:30.4]} 32. Qf2
{[%clk 0:00:20.7]} 32... a6 {[%clk 0:00:29]} 33. Bd1 {[%clk 0:00:19.3]} 33...
Qh3 {[%clk 0:00:27.6]} 34. g4 {[%clk 0:00:19.3]} 34... Ne4 {[%clk 0:00:26.5]}
35. Qc2 {[%clk 0:00:19.4]} 35... Rxd4 {[%clk 0:00:24.6]} 36. cxd4 {[%clk
0:00:18.8]} 36... Rc8 {[%clk 0:00:23.9]} 37. Qb3 {[%clk 0:00:10.3]} 37... Rc1+
{[%clk 0:00:21.4]} 38. Ka2 {[%clk 0:00:10.8]} 38... Bd5 {[%clk 0:00:21.4]} 39.
Qxd5 {[%clk 0:00:03.3]} 39... exd5 {[%clk 0:00:21]} 40. g5 {[%clk 0:00:03.8]}
40... hxg5 {[%clk 0:00:16.3]} 41. Bg4 {[%clk 0:00:01.2]} 41... Rxe1 {[%clk
0:00:14.2]} 0-1